fUSD/lending_fUSD_20240628
["ID","MTS","AMOUNT","RATE_DAILY","PERIOD"]
[330565616,1719577474219,1646.7,0.00031198,30]
[330565617,1719577474257,500.0,0.00031198,30]
[330565618,1719577474287,1132.22,0.00031198,30]
[330565619,1719577474322,1646.7,0.00031198,30]
[330565620,1719577474351,1359.55,0.00031198,30]
[330565621,1719577474389,3054.79,0.00031198,30]
[330565622,1719577474417,1132.22,0.00031198,30]
[330565623,1719577474444,500.0,0.00031198,30]
[330565624,1719577474472,1646.7,0.00031198,30]
[330565625,1719577475078,1132.22,0.00031198,30]
[330565626,1719577475129,500.0,0.00031198,30]
[330565627,1719577475167,3054.79,0.00031198,30]
[330565628,1719577475259,1359.55,0.00031198,30]
[330565629,1719577475351,1132.22,0.00031198,30]
[330565630,1719577475450,500.0,0.00031198,30]
[330565631,1719577475485,1646.7,0.00031198,30]
[330565632,1719577475540,5607.19,0.00031198,30]
[330565633,1719577475571,1132.22,0.00031198,30]
[330565634,1719577475598,500.0,0.00031198,30]
[330565635,1719577475656,1646.78801852,0.00031198,30]
[330565636,1719577475778,1359.55,0.00031198,30]
[330565637,1719577475850,1132.22,0.00031198,30]
[330565638,1719577475993,1132.34898037,0.00031198,30]
[330565639,1719577476021,1359.55,0.00031198,30]
[330565640,1719577476056,5607.19,0.00031198,30]
[330565641,1719577476090,3054.79,0.00031198,30]
[330565642,1719577476203,1359.55,0.00031198,30]
[330565643,1719577476270,5607.19,0.00031198,30]
[330565644,1719577476305,500.0,0.00031198,30]
[330565645,1719577476356,500.0,0.00031198,30]
[330565646,1719577476540,1359.55,0.00031198,30]
[330565647,1719577476618,5607.19,0.00031198,30]
[330565648,1719577476651,500.0,0.00031198,30]
[330565649,1719577476688,500.0,0.00031198,30]
[330565650,1719577476723,1359.61974599,0.00031198,30]
[330565651,1719577476760,500.0,0.00031198,30]
[330565652,1719577476792,500.0,0.00031198,30]
[330565653,1719577476826,583.19060805,0.00031198,30]
[330565654,1719577476952,500.0,0.00031198,30]
[330565655,1719577477034,5607.19,0.00031198,30]
[330565656,1719577477064,500.0,0.00031198,30]
[330565657,1719577477102,154.21448115,0.00031198,30]
[330565658,1719577477134,500.0,0.00031198,30]
[330565659,1719577477166,3054.79,0.00031198,30]
[330565660,1719577477206,4107.93,0.00031198,30]
[330565661,1719577477240,500.0,0.00031198,30]
[330565662,1719577477268,5607.19,0.00031198,30]
[330565663,1719577477496,298.80234149,0.00031198,30]
[330565664,1719577477525,5607.19,0.00031198,30]
[330565665,1719577477614,4107.93,0.00031198,30]
[330565666,1719577477646,3054.79,0.00031198,30]
[330565667,1719577477728,5607.19,0.00031198,30]
[330565668,1719577477789,5607.19,0.00031198,30]
[330565669,1719577477888,5607.19,0.00031198,30]
[330565670,1719577478001,1323.57836379,0.00031198,30]
[330565671,1719577551448,1013.16514783,0.00013999,2]
[330565672,1719577598350,1000.0,0.00013999,2]
[330565679,1719577654528,955.85753929,0.00013999,2]
[330565680,1719577682082,716.77525207,0.00013999,2]
[330565706,1719577770972,474.97828798,0.00013999,2]
[330565707,1719577776427,205.27551127,0.00013999,2]
[330565716,1719577832671,-199.68638685,0.00014099,2]
[330565717,1719577832699,-622.04958902,0.00015,2]
[330565718,1719577832712,-650.8,0.00015264,2]
[330565719,1719577832724,-1340.26171979,0.00015479,2]
[330565720,1719577832737,-1069.94736295,0.00016808,2]
[330565721,1719577832750,-155.0,0.00016808,2]
[330565722,1719577832766,-378.75665363,0.00016808,2]
[330565724,1719577832779,-844.6469,0.000169,2]
[330565726,1719577832792,-300.0,0.00016967,2]
[330565728,1719577832804,-205.31,0.00016968,4]
[330565730,1719577832815,-923.54138776,0.00016968,2]
[330565732,1719577833118,-440.3911957,0.00016968,2]
[330565733,1719577833130,-208.29876607,0.00016968,2]
[330565734,1719577833142,-155.0,0.00016968,2]
[330565735,1719577833161,-205.27551127,0.00016968,2]
[330565736,1719577833172,-2491.89774885,0.00017,2]
[330565737,1719577833184,-499.99,0.00017,2]
[330565738,1719577833196,-3123.51,0.00017,2]
[330565739,1719577833208,-250.0,0.00017051,2]
[330565740,1719577833219,-19770.94,0.00017066,2]
[330565741,1719577833232,-150.0,0.00017109,2]
[330565742,1719577833249,-221.03,0.00017111,2]
[330565744,1719577833263,-800.0,0.00017212,2]
[330565746,1719577833275,-461.52824134,0.00017259,2]
[330565747,1719577833292,-188.19,0.00017399,2]
[330565748,1719577833303,-234.96,0.00017417,2]
[330565749,1719577833315,-172.64,0.00017423,2]
[330565750,1719577833330,-650.8,0.00017528,2]
[330565751,1719577833342,-167.84,0.00017573,2]
[330565752,1719577833354,-150.94,0.00017583,2]
[330565753,1719577833366,-150.94,0.0001766,2]
[330565754,1719577833378,-200.0,0.00017675,2]
[330565755,1719577833390,-544.30071955,0.00017703,2]
[330565756,1719577833402,-150.94,0.00017736,2]
[330565757,1719577833413,-150.94,0.00017812,2]
[330565758,1719577833425,-150.94,0.00017889,2]
[330565759,1719577833446,-166.53,0.00017919,2]
[330565760,1719577833468,-150.94,0.00017965,2]
[330565761,1719577833479,-1190.164,0.00018023,2]
[330565762,1719577833492,-150.94,0.00018041,2]
[330565763,1719577833503,-150.94,0.00018118,2]
[330565764,1719577833518,-150.94,0.00018194,2]
[330565765,1719577833529,-2000.997,0.00018268,2]
[330565766,1719577833540,-188.19,0.00018268,2]
[330565767,1719577833551,-150.94,0.0001827,2]
[330565768,1719577833562,-150.94,0.00018347,2]
[330565769,1719577833576,-150.94,0.00018423,2]
[330565770,1719577833587,-150.94,0.00018499,2]
[330565771,1719577833598,-420.0,0.00018533,2]
[330565772,1719577833609,-600.0,0.000186,6]
[330565773,1719577833621,-150.0,0.0001863,2]
[330565774,1719577833633,-218.4,0.00018641,2]
[330565775,1719577833645,-1523.90289947,0.000187,2]
[330565776,1719577833656,-1200.0,0.000187,6]
[330565777,1719577833669,-1800.0,0.000188,6]
[330565778,1719577833681,-2400.0,0.000189,6]
[330565779,1719577833692,-1000.0,0.000189,2]
[330565780,1719577833704,-1110.30681266,0.00018967,2]
[330565781,1719577833716,-7200.9953,0.00018967,2]
[330565782,1719577833727,-1000.0,0.00018967,2]
[330565783,1719577833739,-2500.0,0.00018967,2]
[330565784,1719577833750,-1914.3511,0.00018967,2]
[330565785,1719577833762,-212.1715,0.00018967,2]
[330565786,1719577833778,-318.15881836,0.0001898,2]
[330565787,1719577833790,-1000.0,0.00019,2]
[330565788,1719577833803,-500.0,0.00019025,2]
[330565789,1719577833815,-200.0,0.00019025,2]
[330565790,1719577833826,-768.85,0.00019057,3]
[330565791,1719577833837,-150.0,0.00019063,2]
[330565792,1719577833850,-100000.0,0.00019067,2]
[330565793,1719577833862,-245000.0,0.00019067,2]
[330565794,1719577833874,-1000.0,0.00019067,2]
[330565795,1719577833887,-218.4,0.00019076,2]
[330565796,1719577833898,-3608.43286027,0.00019078,2]
[330565797,1719577833909,-181.83894054,0.00019078,2]
[330565798,1719577833921,-185.61172509,0.00019078,2]
[330565799,1719577833932,-174.83982574,0.00019078,2]
[330565800,1719577833943,-500.0,0.00019078,2]
[330565801,1719577833967,-352.6212,0.00019078,2]
[330565802,1719577833979,-7500.0,0.00019078,2]
[330565803,1719577833991,-415.90866656,0.0001908,2]
[330565804,1719577834002,-490.0,0.000191,2]
[330565805,1719577834012,-188.19,0.00019138,2]
[330565806,1719577834023,-1702.5096899,0.00019167,2]
[330565807,1719577834034,-1551.7371253,0.00019167,2]
[330565808,1719577834045,-345.3293049,0.00019167,2]
[330565809,1719577834057,-7398.8027282,0.00019167,2]
[330565810,1719577834069,-312.9345486,0.00019167,2]
[330565811,1719577834081,-251.97232857,0.00019168,2]
[330565812,1719577834092,-156.36,0.00019168,2]
[330565813,1719577834104,-181.83894051,0.00019169,2]
[330565814,1719577834115,-172.0,0.0001917,2]
[330565815,1719577834126,-760.267645,0.00019177,2]
[330565816,1719577834137,-1004.64280581,0.00019177,2]
[330565817,1719577834150,-829.0,0.00019178,2]
[330565818,1719577834161,-500.0,0.00019178,2]
[330565819,1719577834173,-500.0,0.00019178,2]
[330565820,1719577834184,-500.0,0.00019178,2]
[330565821,1719577834197,-500.0,0.00019178,2]
[330565822,1719577834208,-500.0,0.00019178,2]
[330565823,1719577834234,-500.0,0.00019178,2]
[330565824,1719577834250,-500.0,0.00019178,2]
[330565825,1719577834262,-500.0,0.00019178,2]
[330565826,1719577834273,-500.0,0.00019178,2]
[330565827,1719577834290,-500.0,0.00019178,2]
[330565828,1719577834304,-500.0,0.00019178,2]
[330565829,1719577834315,-500.0,0.00019178,2]
[330565830,1719577834328,-500.0,0.00019178,2]
[330565831,1719577834341,-554.14495257,0.00019178,2]
[330565832,1719577834355,-500.0,0.00019178,2]
[330565833,1719577834368,-500.0,0.00019178,2]
[330565834,1719577834380,-500.0,0.00019178,2]
[330565835,1719577834393,-500.0,0.00019178,2]
[330565836,1719577834406,-500.0,0.00019178,2]
[330565837,1719577834418,-500.0,0.00019178,2]
[330565838,1719577834429,-500.0,0.00019178,2]
[330565839,1719577834441,-500.0,0.00019178,2]
[330565840,1719577834466,-500.0,0.00019178,2]
[330565841,1719577834478,-500.0,0.00019178,2]
[330565842,1719577834489,-500.0,0.00019178,2]
[330565843,1719577834502,-500.0,0.00019178,2]
[330565844,1719577834513,-507.72,0.00019178,2]
[330565845,1719577834524,-151.0,0.00019178,2]
[330565846,1719577834536,-500.0,0.00019178,2]
[330565847,1719577834548,-837.45,0.00019178,2]
[330565848,1719577834558,-500.0,0.00019178,2]
[330565849,1719577834569,-500.0,0.00019178,2]
[330565850,1719577834580,-2000.0,0.00019178,2]
[330565851,1719577834591,-500.0,0.00019178,2]
[330565852,1719577834605,-500.0,0.00019178,2]
[330565853,1719577834617,-500.0,0.00019178,2]
[330565854,1719577834629,-1409.56,0.00019178,2]
[330565855,1719577834643,-1208.02,0.00019178,2]
[330565856,1719577834661,-500.0,0.00019178,2]
[330565857,1719577834673,-500.0,0.00019178,2]
[330565858,1719577834685,-1187.16,0.00019178,2]
[330565859,1719577834697,-500.0,0.00019178,2]
[330565860,1719577834711,-500.0,0.00019178,2]
[330565861,1719577834723,-478.11923802,0.00019178,2]
[330565862,1719577834735,-907.78,0.00019178,2]
[330565863,1719577834747,-500.0,0.00019178,2]
[330565864,1719577834759,-500.0,0.00019178,2]
[330565865,1719577834771,-537.17203884,0.00019178,2]
[330565866,1719577834783,-1301.53,0.00019178,2]
[330565867,1719577834794,-500.0,0.00019178,2]
[330565868,1719577834806,-696.42,0.00019178,2]
[330565869,1719577834820,-500.0,0.00019178,2]
[330565870,1719577834832,-751.06,0.00019178,2]
[330565871,1719577834843,-465.42167828,0.00019178,2]
[330565872,1719577834854,-620.19105377,0.00019178,2]
[330565873,1719577834866,-500.0,0.00019178,2]
[330565874,1719577834878,-1030.55,0.00019178,2]
[330565875,1719577834890,-1028.66,0.00019178,2]
[330565876,1719577834901,-500.0,0.00019178,2]
[330565877,1719577834916,-1347.76,0.00019178,2]
[330565878,1719577834928,-500.0,0.00019178,2]
[330565879,1719577834939,-500.0,0.00019178,2]
[330565880,1719577834958,-738.83,0.00019178,2]
[330565881,1719577834975,-500.0,0.00019178,2]
[330565882,1719577834987,-500.0,0.00019178,2]
[330565883,1719577834998,-500.0,0.00019178,2]
[330565884,1719577835010,-1710.44,0.00019178,2]
[330565885,1719577835022,-500.0,0.00019178,2]
[330565886,1719577835035,-1852.55,0.00019178,2]
[330565887,1719577835046,-500.0,0.00019178,2]
[330565888,1719577835058,-918.03,0.00019178,2]
[330565889,1719577835071,-500.0,0.00019178,2]
[330565890,1719577835082,-500.0,0.00019178,2]
[330565891,1719577835094,-991.57,0.00019178,2]
[330565892,1719577835106,-1289.94,0.00019178,2]
[330565893,1719577835123,-955.27,0.00019178,2]
[330565894,1719577835136,-500.0,0.00019178,2]
[330565895,1719577835148,-1101.67,0.00019178,2]
[330565896,1719577835160,-500.0,0.00019178,2]
[330565897,1719577835172,-500.0,0.00019178,2]
[330565898,1719577835186,-1185.36,0.00019178,2]
[330565899,1719577835199,-1304.32,0.00019178,2]
[330565900,1719577835210,-500.0,0.00019178,2]
[330565901,1719577835225,-500.0,0.00019178,2]
[330565902,1719577835247,-500.0,0.00019178,2]
[330565903,1719577835262,-584.34,0.00019178,2]
[330565904,1719577835275,-500.0,0.00019178,2]
[330565905,1719577835288,-151.0,0.00019178,2]
[330565906,1719577835300,-972.1,0.00019178,2]
[330565907,1719577835313,-151.0,0.00019178,2]
[330565908,1719577835325,-615.58,0.00019178,2]
[330565909,1719577835341,-151.0,0.00019178,2]
[330565910,1719577835352,-151.0,0.00019178,2]
[330565911,1719577835364,-500.0,0.00019178,2]
[330565912,1719577835377,-500.0,0.00019178,2]
[330565913,1719577835389,-238.57143148,0.00019178,2]
[330565914,1719577835401,-563.32,0.00019178,2]
[330565915,1719577835413,-576.89971474,0.00019178,2]
[330565916,1719577835424,-7191.64,0.00019178,2]
[330565917,1719577835437,-856.08,0.00019178,2]
[330565918,1719577835449,-500.0,0.00019178,2]
[330565919,1719577835479,-500.0,0.00019178,2]
[330565920,1719577835492,-500.0,0.00019178,2]
[330565921,1719577835504,-500.0,0.00019178,2]
[330565922,1719577835516,-500.0,0.00019178,2]
[330565923,1719577835528,-500.0,0.00019178,2]
[330565924,1719577835540,-500.0,0.00019178,2]
[330565925,1719577835553,-500.0,0.00019178,2]
[330565926,1719577835565,-500.0,0.00019178,2]
[330565927,1719577835578,-500.0,0.00019178,2]
[330565928,1719577835590,-701.23,0.00019178,2]
[330565929,1719577835603,-500.0,0.00019178,2]
[330565930,1719577835616,-500.0,0.00019178,2]
[330565931,1719577835632,-4607.78004604,0.00019178,2]
[330565932,1719577835645,-500.0,0.00019178,2]
[330565933,1719577835657,-500.0,0.00019178,2]
[330565934,1719577835671,-993.07,0.00019178,2]
[330565935,1719577835683,-809.71,0.00019178,2]
[330565936,1719577835696,-500.0,0.00019178,2]
[330565937,1719577835707,-500.0,0.00019178,2]
[330565938,1719577835720,-663.97,0.00019178,2]
[330565939,1719577835731,-500.0,0.00019178,2]
[330565940,1719577835744,-736.95,0.00019178,2]
[330565941,1719577835757,-500.0,0.00019178,2]
[330565942,1719577835769,-500.0,0.00019178,2]
[330565943,1719577835781,-328.74882659,0.00019178,2]
[330565944,1719577835795,-500.0,0.00019178,2]
[330565945,1719577835807,-151.0,0.00019178,2]
[330565946,1719577835818,-151.0,0.00019178,2]
[330565947,1719577835830,-151.0,0.00019178,2]
[330565948,1719577835842,-500.0,0.00019178,2]
[330565949,1719577835853,-500.0,0.00019178,2]
[330565950,1719577835866,-500.0,0.00019178,2]
[330565951,1719577835879,-1354.33,0.00019178,2]
[330565952,1719577835891,-500.0,0.00019178,2]
[330565953,1719577835903,-864.09,0.00019178,2]
[330565954,1719577835915,-731.62,0.00019178,2]
[330565955,1719577835927,-500.0,0.00019178,2]
[330565956,1719577835938,-500.0,0.00019178,2]
[330565957,1719577835950,-1317.28,0.00019178,2]
[330565958,1719577835974,-798.09,0.00019178,2]
[330565959,1719577835986,-500.0,0.00019178,2]
[330565960,1719577835997,-500.0,0.00019178,2]
[330565961,1719577836012,-500.0,0.00019178,2]
[330565962,1719577836023,-500.0,0.00019178,2]
[330565963,1719577836035,-500.0,0.00019178,2]
[330565964,1719577836048,-863.71,0.00019178,2]
[330565965,1719577836061,-500.0,0.00019178,2]
[330565966,1719577836075,-500.0,0.00019178,2]
[330565967,1719577836090,-901.88,0.00019178,2]
[330565968,1719577836103,-500.0,0.00019178,2]
[330565969,1719577836115,-685.37,0.00019178,2]
[330565970,1719577836127,-500.0,0.00019178,2]
[330565971,1719577836139,-1703.92,0.00019178,2]
[330565972,1719577836152,-686.52,0.00019178,2]
[330565973,1719577836164,-592.9,0.00019178,2]
[330565974,1719577836177,-1771.97,0.00019178,2]
[330565975,1719577836190,-500.0,0.00019178,2]
[330565976,1719577836202,-1055.05,0.00019178,2]
[330565977,1719577836214,-500.0,0.00019178,2]
[330565978,1719577836226,-1230.72,0.00019178,2]
[330565979,1719577836245,-1112.47,0.00019178,2]
[330565980,1719577836257,-507.44,0.00019178,2]
[330565981,1719577836270,-500.0,0.00019178,2]
[330565982,1719577836286,-633.13269683,0.00019178,2]
[330565983,1719577836298,-500.0,0.00019178,2]
[330565984,1719577836309,-500.0,0.00019178,2]
[330565985,1719577836324,-500.0,0.00019178,2]
[330565986,1719577836337,-500.0,0.00019178,2]
[330565987,1719577836349,-595.04,0.00019178,2]
[330565988,1719577836373,-500.0,0.00019178,2]
[330565989,1719577836386,-1205.79,0.00019178,2]
[330565990,1719577836398,-500.0,0.00019178,2]
[330565991,1719577836410,-500.0,0.00019178,2]
[330565992,1719577836423,-3288.28,0.00019178,2]
[330565993,1719577836436,-500.0,0.00019178,2]
[330565994,1719577836447,-731.1,0.00019178,2]
[330565995,1719577836481,-881.0,0.00019178,2]
[330565996,1719577836493,-551.24,0.00019178,2]
[330565997,1719577836505,-500.0,0.00019178,2]
[330565998,1719577836517,-521.69,0.00019178,2]
[330565999,1719577836529,-798.01,0.00019178,2]
[330566000,1719577836541,-500.0,0.00019178,2]
[330566001,1719577836553,-1317.07,0.00019178,2]
[330566002,1719577836564,-500.0,0.00019178,2]
[330566003,1719577836577,-500.0,0.00019178,2]
[330566004,1719577836589,-813.82,0.00019178,2]
[330566005,1719577836601,-500.0,0.00019178,2]
[330566006,1719577836613,-3004.67,0.00019178,2]
[330566007,1719577836625,-929.7,0.00019178,2]
[330566008,1719577836640,-500.0,0.00019178,2]
[330566009,1719577836656,-1181.82,0.00019178,2]
[330566010,1719577836669,-586.33,0.00019178,2]
[330566011,1719577836681,-1213.41,0.00019178,2]
[330566012,1719577836694,-500.0,0.00019178,2]
[330566013,1719577836705,-500.0,0.00019178,2]
[330566014,1719577836717,-500.0,0.00019178,2]
[330566015,1719577836729,-2541.12,0.00019178,2]
[330566016,1719577836742,-500.0,0.00019178,2]
[330566017,1719577836754,-500.0,0.00019178,2]
[330566018,1719577836766,-500.0,0.00019178,2]
[330566019,1719577836778,-500.0,0.00019178,2]
[330566020,1719577836791,-846.86,0.00019178,2]
[330566021,1719577836802,-1179.37,0.00019178,2]
[330566022,1719577836813,-500.0,0.00019178,2]
[330566023,1719577836825,-704.68,0.00019178,2]
[330566024,1719577836837,-500.0,0.00019178,2]
[330566025,1719577836849,-1069.57,0.00019178,2]
[330566026,1719577836862,-500.0,0.00019178,2]
[330566027,1719577836873,-615.33,0.00019178,2]
[330566028,1719577836886,-500.0,0.00019178,2]
[330566029,1719577836898,-511.57,0.00019178,2]
[330566030,1719577836909,-500.0,0.00019178,2]
[330566031,1719577836921,-933.4,0.00019178,2]
[330566032,1719577836933,-731.0712905,0.00019178,2]
[330566041,1719577838466,-697.7687095,0.00019178,2]
[330566042,1719577838477,-1381.51,0.00019178,2]
[330566043,1719577838488,-4830.09,0.00019178,2]
[330566044,1719577838500,-895.76,0.00019178,2]
[330566045,1719577838511,-1415.41,0.00019178,2]
[330566047,1719577838522,-500.0,0.00019178,2]
[330566050,1719577838533,-500.0,0.00019178,2]
[330566052,1719577838544,-500.0,0.00019178,2]
[330566054,1719577838554,-1184.34,0.00019178,2]
[330566055,1719577838565,-500.0,0.00019178,2]
[330566056,1719577838577,-500.0,0.00019178,2]
[330566057,1719577838589,-500.0,0.00019178,2]
[330566058,1719577838600,-500.0,0.00019178,2]
[330566059,1719577838611,-500.0,0.00019178,2]
[330566060,1719577838623,-1071.03,0.00019178,2]
[330566061,1719577838635,-941.56,0.00019178,2]
[330566062,1719577838646,-888.77,0.00019178,2]
[330566063,1719577838657,-4723.61,0.00019178,2]
[330566064,1719577838667,-500.0,0.00019178,2]
[330566065,1719577838678,-496.30426277,0.00019178,2]
[330566066,1719577838689,-598.17,0.00019178,2]
[330566067,1719577838700,-500.0,0.00019178,2]
[330566068,1719577838711,-500.0,0.00019178,2]
[330566069,1719577838721,-500.0,0.00019178,2]
[330566070,1719577838731,-1093.17,0.00019178,2]
[330566071,1719577838742,-500.0,0.00019178,2]
[330566072,1719577838752,-500.0,0.00019178,2]
[330566073,1719577838763,-609.21359982,0.00019178,2]
[330566074,1719577838778,-371.43640018,0.00019178,2]
[330566075,1719577838788,-543.35,0.00019178,2]
[330566076,1719577838799,-690.84,0.00019178,2]
[330566077,1719577838810,-500.0,0.00019178,2]
[330566078,1719577838820,-500.0,0.00019178,2]
[330566079,1719577838831,-500.0,0.00019178,2]
[330566080,1719577838842,-500.0,0.00019178,2]
[330566081,1719577838852,-500.0,0.00019178,2]
[330566082,1719577838862,-498.47359982,0.00019178,2]
[330566083,1719577838996,-1.52640018,0.00019178,2]
[330566084,1719577839007,-729.83,0.00019178,2]
[330566085,1719577839016,-470.66571136,0.00019178,2]
[330566086,1719577839035,-400.58428864,0.00019178,2]
[330566087,1719577839046,-1645.89,0.00019178,2]
[330566088,1719577839057,-1775.37324077,0.00019178,2]
[330566089,1719577839143,-1750.0,0.00019178,2]
[330566090,1719577839183,-330.21675923,0.00019178,2]
[330566091,1719577839195,-500.0,0.00019178,2]
[330566092,1719577839207,-500.0,0.00019178,2]
[330566093,1719577839219,-500.0,0.00019178,2]
[330566094,1719577839232,-594.94,0.00019178,2]
[330566095,1719577839253,-656.87941202,0.00019178,2]
[330566123,1719577843328,-5573.13442134,0.00018967,2]
[330566124,1719577843339,-160.0,0.00018978,2]
[330566125,1719577843349,-811.31058798,0.00019178,2]
[330566127,1719577843359,-231.52355361,0.00019178,2]
[330566130,1719577843371,-268.47644639,0.00019178,2]
[330566133,1719577843382,-500.0,0.00019178,2]
[330566136,1719577843392,-221.06603084,0.00019178,2]
[330566145,1719577843442,-750.0,0.00019178,2]
[330566147,1719577843453,-108.74623956,0.00019178,2]
[330566166,1719577843563,-170.1877296,0.00019178,2]
[330566167,1719577843573,-500.0,0.00019178,2]
[330566168,1719577843584,-1317.25315275,0.00019178,2]
[330566169,1719577843596,-44.65684725,0.00019178,2]
[330566170,1719577843607,-500.0,0.00019178,2]
[330566171,1719577843617,-500.0,0.00019178,2]
[330566172,1719577843629,-500.0,0.00019178,2]
[330566173,1719577843639,-500.0,0.00019178,2]
[330566174,1719577843650,-889.87,0.00019178,2]
[330566175,1719577843660,-16352.01,0.00019178,2]
[330566176,1719577843670,-500.0,0.00019178,2]
[330566177,1719577843680,-1158.12,0.00019178,2]
[330566178,1719577843690,-1004.38,0.00019178,2]
[330566179,1719577843700,-500.0,0.00019178,2]
[330566180,1719577843709,-997.24,0.00019178,2]
[330566181,1719577843719,-500.0,0.00019178,2]
[330566182,1719577843730,-1214.69,0.00019178,2]
[330566183,1719577843740,-299.42834452,0.00019178,2]
[330566184,1719577843749,-500.0,0.00019178,2]
[330566185,1719577843759,-1047.36,0.00019178,2]
[330566186,1719577843768,-594.42,0.00019178,2]
[330566187,1719577843778,-500.0,0.00019178,2]
[330566188,1719577843788,-1126.63,0.00019178,2]
[330566189,1719577843798,-500.0,0.00019178,2]
[330566190,1719577843807,-904.27,0.00019178,2]
[330566191,1719577843817,-500.0,0.00019178,2]
[330566192,1719577843826,-587.09657053,0.00019178,2]
[330566193,1719577843836,-500.0,0.00019178,2]
[330566194,1719577843846,-574.3,0.00019178,2]
[330566195,1719577843855,-500.0,0.00019178,2]
[330566196,1719577843865,-531.34,0.00019178,2]
[330566197,1719577843874,-611.36,0.00019178,2]
[330566198,1719577843883,-500.0,0.00019178,2]
[330566199,1719577843893,-714.4,0.00019178,2]
[330566200,1719577843903,-500.0,0.00019178,2]
[330566201,1719577843912,-673.25,0.00019178,2]
[330566202,1719577843922,-998.58,0.00019178,2]
[330566203,1719577843932,-607.79,0.00019178,2]
[330566204,1719577843942,-649.04860809,0.00019178,2]
[330566205,1719577843952,-500.0,0.00019178,2]
[330566206,1719577843961,-213.47414586,0.00019178,2]
[330566207,1719577843971,-500.0,0.00019178,2]
[330566208,1719577843981,-750.77,0.00019178,2]
[330566209,1719577843990,-500.0,0.00019178,2]
[330566210,1719577844000,-500.0,0.00019178,2]
[330566211,1719577844009,-584.11,0.00019178,2]
[330566212,1719577844019,-500.0,0.00019178,2]
[330566213,1719577844029,-500.0,0.00019178,2]
[330566214,1719577844039,-2589.82,0.00019178,2]
[330566215,1719577844048,-500.0,0.00019178,2]
[330566216,1719577844058,-500.0,0.00019178,2]
[330566217,1719577844068,-500.0,0.00019178,2]
[330566218,1719577844078,-500.0,0.00019178,2]
[330566219,1719577844087,-500.0,0.00019178,2]
[330566220,1719577844097,-731.3,0.00019178,2]
[330566221,1719577844107,-500.0,0.00019178,2]
[330566222,1719577844117,-223.26790971,0.00019178,2]
[330566231,1719577845233,-464.64,0.00019178,2]
[330566232,1719577845248,-2163.465,0.00019178,2]
[330566233,1719577845259,-603.64709029,0.00019178,2]
[330566234,1719577845268,-500.0,0.00019178,2]
[330566235,1719577845278,-219.75921426,0.00019178,2]
[330566237,1719577846446,-266.41276365,0.00019178,2]
[330566238,1719577846458,-257.14802209,0.00019178,2]
[330566239,1719577846467,-500.0,0.00019178,2]
[330566240,1719577846478,-500.0,0.00019178,2]
[330566241,1719577846488,-10.38827558,0.00019178,2]
[330566242,1719577846501,-489.61172442,0.00019178,2]
[330566243,1719577846511,-10.38827558,0.00019178,2]
[330566244,1719577846657,-489.61172442,0.00019178,2]